[Event "American Cup Blitz 2024"]
[Site "Saint Louis"]
[Date "2024.03.21"]
[Round "4.4"]
[White "Quesada Perez, Yuniesky"]
[Black "Le, Quang Liem"]
[Result "1/2-1/2"]
[ECO "B31"]
[WhiteElo "2591"]
[BlackElo "2731"]
[Annotator "TA"]
[PlyCount "104"]
[EventDate "2024.03.21"]
[EventType "swiss"]
[EventCountry "USA"]
[SourceTitle "playchess.com"]
[Source "ChessBase"]
[SourceQuality "1"]
[TimeControl "180+2"]

{[%evp 19,104,9,1,4,8,-20,-4,-5,-19,-41,-8,-61,-60,-73,-47,-66,-56,-63,-18,-14,-9,-24,0,0,0,-16,0,0,38,48,36,52,36,43,114,119,113,106,162,152,148,128,128,105,113,113,112,66,72,64,117,102,110,111,133,135,111,8,8,8,8,8,8,8,8,8,8,0,0,0,0,0,0,0,0,-8,8,8,8,8,8,8,8,8,8,0,0]} 1. e4 {[%emt 0:00:02]} c5 {[%emt 0:00:01]} 2. Nf3 {[%emt 0:00:02]} Nc6 {[%emt 0:00:01]} 3. Bb5 {[%emt 0:00:06]} g6 {[%emt 0:00:02]} 4. O-O {[%emt 0:00:04]} Bg7 {[%emt 0:00:01]} 5. c3 {[%emt 0:00:02]} Nf6 {[%emt 0:00:04]} 6. Re1 {[%emt 0:00:01]} O-O {[%emt 0:00:03]} 7. d4 {[%emt 0:00:02]} a6 {[%emt 0:00:03]} 8. Bxc6 {[%emt 0:00:18]} dxc6 {[%emt 0:00:02]} 9. h3 {[%emt 0:00:02]} cxd4 {[%emt 0:00:01]} 10. cxd4 {[%emt 0:00:01]} c5 {[%emt 0:00:02]} 11. e5 {[%emt 0:00:34]} (11. dxc5 Qxd1 12. Rxd1 Nxe4 $17) 11... Nd7 {[%emt 0:00:13]} 12. e6 {[%emt 0:00:10]} fxe6 {[%emt 0:00:02]} 13. Nc3 {[%emt 0:00:03]} cxd4 {[%emt 0:00:24]} 14. Nxd4 {[%emt 0:00:02]} Nb6 {[%emt 0:00:05][%cal Bd7b6,Bb6c4,Bc4a3][%mdl 32]} 15. Nf3 {[%emt 0:00:38]} (15. Nxe6 $11 Qxd1 16. Nxd1 Bxe6 17. Rxe6) 15... Qxd1 $15 {[%emt 0:00:08]} 16. Nxd1 {[%emt 0:00:05]} Bd7 {[%emt 0:00:24]} 17. Be3 {[%emt 0:00:06]} Nc4 {[%emt 0:00:16][%cal Of8f3]} 18. Bd4 {[%emt 0:00:01]} Rac8 {[%emt 0:00:23]} 19. Bxg7 {[%emt 0:00:04]} Kxg7 {[%emt 0:00:02]} 20. b3 {[%emt 0:00:25]} Na3 {[%emt 0:00:08] Und jetzt ...Nc2 wäre schön.} 21. Ne3 {[%emt 0:00:01]} Rfd8 {[%emt 0:00:02]} 22. Rac1 {[%emt 0:00:06]} Bc6 {[%emt 0:00:08]} 23. Ng5 {[%emt 0:00:03]} Rd6 {[%emt 0:00:10]} 24. Ng4 {[%emt 0:00:09]} Bd7 {[%emt 0:00:11]} 25. Rxc8 {[%emt 0:00:10]} Bxc8 {[%emt 0:00:01]} 26. Rc1 {[%emt 0:00:01]} Rc6 {[%emt 0:00:25]} (26... Rd8 $14) 27. Rxc6 $16 {[%emt 0:00:06]} bxc6 {[%emt 0:00:01][%mdl 4096] Endspiel. KBN-KNN} 28. Ne5 {[%emt 0:00:04]} Bb7 {[%emt 0:00:17]} (28... h5 $16) 29. f4 {[%emt 0:00:03]} (29. Nxe6+ Kf6 30. Nd8 Kxe5 $14) 29... Nb5 {[%emt 0:00:13]} 30. Nxe6+ {[%emt 0:00:06]} Kf6 {[%emt 0:00:01]} 31. Nc5 {[%emt 0:00:02]} Bc8 {[%emt 0:00:02]} 32. Nxc6 {[%emt 0:00:04] Ein dynamisches Springerpaar.} Nc3 {[%emt 0:00:02]} 33. Kf2 {[%emt 0:00:07] Gegen Ne2 gerichtet.} (33. a3 $16) 33... Nxa2 $14 {[%emt 0:00:01]} 34. g4 {[%emt 0:00:02]} h6 {[%emt 0:00:06] [#]} (34... Nc3 $14) 35. Kf3 $1 $16 {[%emt 0:00:03] Weiß steht aktiver.} Nc3 {[%emt 0:00:01] [#]} 36. h4 $1 {[%emt 0:00:04]} g5 {[%emt 0:00:03]} 37. hxg5+ hxg5 {[%emt 0:00:01]} 38. fxg5+ ({Günstiger ist} 38. Na7 $16 Be6 39. fxg5+ (39. Nxa6 Bxb3 40. fxg5+ Kxg5 $11) 39... Ke5 40. Nc6+ (40. Nxa6 Bxb3 41. Nb4 Bd1+ 42. Kg3 Ne2+ 43. Kh4 Nf4 $14) 40... Kd6 41. Nxe6 (41. Nxa6 $2 {zu gefräßig.} Kxc6 42. Nb4+ Kd6 $19) 41... Kxe6 42. Nb8) 38... Kxg5 $11 {[%emt 0:00:01] Die Stellung ist ausgeglichen.} 39. Nxe7 {[%emt 0:00:16]} Bxg4+ {[%emt 0:00:02]} 40. Ke3 {[%emt 0:00:00]} Kf6 {[%emt 0:00:03]} 41. Nc6 {[%emt 0:00:02]} Bc8 {[%emt 0:00:02]} 42. Nb4 {[%emt 0:00:02]} Ke5 {[%emt 0:00:03]} 43. Ncd3+ {[%emt 0:00:03]} Kd6 {[%emt 0:00:01]} 44. Kd4 {[%emt 0:00:02]} Nb5+ {[%emt 0:00:01]} 45. Ke3 {[%emt 0:00:02]} a5 {[%emt 0:00:01]} 46. Nc2 {[%emt 0:00:01]} Be6 {[%emt 0:00:01]} 47. Nd4 {[%emt 0:00:02]} Nc3 {[%emt 0:00:05]} 48. Nxe6 {[%emt 0:00:04]} Kxe6 {[%emt 0:00:01]} 49. Kd4 {[%emt 0:00:00]} Ne2+ {[%emt 0:00:03]} 50. Kc4 {[%emt 0:00:04]} Kd6 {[%emt 0:00:01]} 51. Kb5 {[%emt 0:00:01]} Nd4+ {[%emt 0:00:02]} 52. Kxa5 {[%emt 0:00:02]} Nxb3+ {[%emt 0:00:01] Gewichteter Fehlerwert: Weiß=0.10 (sehr präzise) /Schwarz=0.13 (sehr präzise) .  Fehler:       	Weiß=3     	Schwarz=3     Ungenau:       	Weiß=1     	Schwarz=4     OK:         	Weiß=16    	Schwarz=15    Bester:       	Weiß=5     	Schwarz=5     Stark:        	Weiß=2     	---} 1/2-1/2

[Event "American Cup Blitz 2024"]
[Site "Saint Louis"]
[Date "2024.03.21"]
[Round "4.5"]
[White "So, Wesley"]
[Black "Antipov, Mikhail Al."]
[Result "1-0"]
[ECO "C54"]
[WhiteElo "2757"]
[BlackElo "2573"]
[Annotator "TA"]
[PlyCount "70"]
[EventDate "2024.03.21"]
[EventType "swiss"]
[EventCountry "USA"]
[SourceTitle "playchess.com"]
[Source "ChessBase"]
[SourceQuality "1"]
[TimeControl "180+2"]

{[%evp 30,70,0,-116,-62,-66,-58,-44,-40,-59,-68,-67,-75,-274,-214,-307,42,45,38,20,72,-70,217,222,260,0,112,113,100,-100,-101,-143,-144,-145,-160,-180,350,18,21,15,631,596,29999]} 1. e4 {[%emt 0:00:01]} e5 {[%emt 0:00:00]} 2. Nf3 {[%emt 0:00:02]} Nc6 {[%emt 0:00:01]} 3. Bc4 {[%emt 0:00:01]} Bc5 {[%emt 0:00:01]} 4. d3 {[%emt 0:00:04]} Nf6 {[%emt 0:00:02]} 5. Bg5 {[%emt 0:00:01]} h6 {[%emt 0:00:02]} 6. Bh4 {[%emt 0:00:00]} a6 {[%emt 0:00:02]} 7. c3 {[%emt 0:00:03]} d6 {[%emt 0:00:02]} 8. Nbd2 {[%emt 0:00:06] C54: Giuoco Piano: 4 c3 Nf6, main lines with 5 d4 and 5 d3.} Ba7 {[%emt 0:00:01]} 9. b4 {[%emt 0:00:01]} Qe7 {[%emt 0:00:08]} 10. O-O {[%emt 0:00:05]} g5 {[%emt 0:00:01]} 11. Bg3 {[%emt 0:00:01]} Nd7 {[%emt 0:00:04]} 12. a4 {[%emt 0:00:01]} h5 {[%emt 0:00:16]} 13. h4 {[%emt 0:00:18]} g4 {[%emt 0:00:01]} 14. Nh2 {[%emt 0:00:35]} Nf8 {[%emt 0:00:01]} 15. Kh1 {[%emt 0:00:01]} Ng6 {[%emt 0:00:01]} 16. b5 {[%emt 0:00:04]} (16. f3 $11 Nxh4 17. fxg4) 16... Na5 {[%emt 0:00:02]} (16... Nd8 $17 17. d4 Nxh4) 17. Bd5 {[%emt 0:00:01]} c6 {[%emt 0:00:01]} 18. Ba2 {[%emt 0:00:02]} Nxh4 {[%emt 0:00:02]} (18... axb5 $6 19. axb5 cxb5 20. Bxf7+ (20. f3 Nf4 $16) 20... Qxf7 (20... Kxf7 21. Rxa5 Rg8 22. Rxb5 $16) 21. Rxa5 $16) 19. f4 {[%emt 0:00:01]} Nxg2 {[%emt 0:00:12]} 20. Kxg2 $146 {[%emt 0:00:23]} ({Predecessor:} 20. fxe5 h4 21. Bf2 Bxf2 22. Rxf2 Ne3 23. Qe2 Qg5 24. exd6 g3 25. Rxf7 gxh2 26. Nf3 {1-0 Shirov,A (2655)-Vogel,R (2471) Bundesliga 2324 2023 (7.1)}) 20... h4 {[%emt 0:00:02]} 21. Be1 $2 {[%emt 0:00:29]} (21. Bf2 $17 {is a better defense.} Bxf2 22. Kxf2 g3+ 23. Kg1) 21... g3 $19 {[%emt 0:00:01]} 22. Ng4 {[%emt 0:00:35]} (22. d4 $142 exd4 (22... gxh2 23. fxe5 dxe5 24. Bxf7+ Kd8 25. Kxh2 $14) 23. Nhf3 dxc3 24. Ng5) 22... Rg8 $2 {[%emt 0:02:14]} (22... h3+ $19 23. Kxg3 h2 (23... Qh4+ 24. Kh2 $16)) 23. f5 $14 {[%emt 0:00:12]} Qg5 {[%emt 0:00:01]} 24. Kh3 $1 {[%emt 0:00:01]} Bd7 {[%emt 0:00:12]} (24... axb5 $11 25. axb5 Bb6 (25... g2 $2 26. Kxg2 Qxg4+ 27. Qxg4 $18)) 25. Qf3 {[%emt 0:00:04]} ({White should try} 25. bxa6 $16 {Hoping for Nc4.} bxa6 (25... g2 26. Kxg2 h3+ 27. Kxh3 $18) 26. Rb1) 25... O-O-O $2 {[%emt 0:00:02][%mdl 8192]} (25... cxb5 $15 {keeps the upper hand.} 26. d4 exd4) 26. Bxf7 {[%emt 0:00:07]} Rg7 {[%emt 0:00:06]} 27. Be6 $2 {[%emt 0:00:03]} (27. bxc6 $1 $18 bxc6 28. Nc4) 27... Bxe6 {[%emt 0:00:11]} (27... Rdg8 $1 $11 {remains equal.} 28. Bxg8 Rxg8) 28. fxe6 $16 {[%emt 0:00:00]} Rdg8 {[%emt 0:00:01] [#]} 29. e7 $2 {[%emt 0:00:17]} (29. Nf6 $1 $16 {[%cal Rf6g8] keeps the pressure on.} g2 (29... Rh8 30. Qg2) 30. Nxg8 gxf1=R 31. Nxf1 Rxg8 32. Bxh4) 29... Qxe7 $1 $17 {[%emt 0:00:01]} (29... Qxg4+ $2 30. Qxg4+ Rxg4 31. Rf8+ Kc7 32. e8=Q $18 (32. e8=R Rxf8 33. Rxf8 g2 $18)) 30. Nf6 {[%emt 0:00:07]} Rf8 $1 {[%emt 0:00:08]} (30... g2 31. Qf5+ Kc7 32. Bxh4 gxf1=R (32... gxf1=B+ 33. Rxf1 Rh8 34. bxc6 $15) 33. Rxf1 $15) 31. Qf5+ {[%emt 0:00:04] [#]} (31. Kxh4 Qxf6+ (31... axb5 $2 32. Qf5+ Kc7 33. Kh3 $19) (31... Rh8+ 32. Qh5 Rxh5+ 33. Kxh5 Bf2 34. bxa6 Qf7+ 35. Kh4 Qxf6+ 36. Kh3 Rh7+ 37. Kg4 Rh4#) (31... g2 $2 32. Qf5+ Kb8 33. Kh3 $19) 32. Kh3 Qh6+) 31... Kd8 $1 {[%emt 0:00:00]} 32. bxc6 {[%emt 0:00:03]} (32. Kxh4 Rh8+ (32... axb5 $2 33. Kh3 $19) (32... axb5 $2 33. Kh3 $19)) 32... g2 $4 {[%emt 0:00:03][%mdl 8192] [#]} (32... bxc6 $19 {avoids the disaster. Strongly threatening ...g2.} 33. Rb1 (33. Kxh4 Rh8+) (33. Kg2 $2 Bf2 $19) 33... Rgf7) 33. Bxh4 $2 {[%emt 0:00:07]} (33. c7+ $1 $18 Qxc7 34. Rg1) 33... gxf1=Q+ $11 {[%emt 0:00:02]} (33... gxf1=B+ $2 {too greedy.} 34. Rxf1 Nxc6 35. Nf3 $18) 34. Rxf1 {[%emt 0:00:01]} Rh8 $2 {[%emt 0:00:04][%mdl 8192]} ({Don't play} 34... Nxc6 35. Nf3 $16) (34... bxc6 $11 35. Nh5 Rxf5 36. Bxe7+ Kxe7 37. exf5 (37. Rxf5 Rf7 $11) 37... Rg8) 35. Nh5 $18 {[%emt 0:00:02]} Rgh7 {[%emt 0:00:03]} 1-0

[Event "American Cup Blitz 2024"]
[Site "Saint Louis"]
[Date "2024.03.21"]
[Round "4.6"]
[White "Quesada Perez, Yasser"]
[Black "Aronian, Levon"]
[Result "0-1"]
[ECO "B51"]
[WhiteElo "2584"]
[BlackElo "2722"]
[Annotator "RC"]
[PlyCount "80"]
[EventDate "2024.03.21"]
[EventType "swiss"]
[EventCountry "USA"]
[SourceTitle "playchess.com"]
[Source "ChessBase"]
[SourceQuality "1"]
[TimeControl "180+2"]

1. e4 {[%emt 0:00:01]} c5 {[%emt 0:00:01]} 2. Nf3 {[%emt 0:00:02]} d6 {[%emt 0:00:01]} 3. Bb5+ {[%emt 0:00:04]} Nd7 {[%emt 0:00:01]} 4. O-O {[%emt 0:00:03]} a6 {[%emt 0:00:02]} 5. Bd3 {[%emt 0:00:03]} Ngf6 {[%emt 0:00:06]} 6. c3 {[%emt 0:00:05]} Ne5 {[%emt 0:00:07]} 7. Nxe5 {[%emt 0:00:07]} dxe5 {[%emt 0:00:01]} 8. Bc2 {[%emt 0:00:03]} g6 {[%emt 0:00:15]} 9. d3 {[%emt 0:00:05]} Bg7 {[%emt 0:00:01]} 10. a3 {[%emt 0:00:03]} a5 {[%emt 0:00:20]} 11. a4 {[%emt 0:00:02]} O-O {[%emt 0:00:06]} 12. Na3 {[%emt 0:00:01]} Bg4 {[%emt 0:00:11]} 13. Qe1 {[%emt 0:00:11]} Be6 {[%emt 0:00:06]} 14. Nc4 {[%emt 0:00:22]} Qc7 {[%emt 0:00:03]} 15. h3 {[%emt 0:00:04]} Rad8 {[%emt 0:00:04]} 16. Be3 {[%emt 0:00:15]} Nxe4 {[%emt 0:00:07]} 17. f4 {[%emt 0:00:31]} exf4 {[%emt 0:00:14]} 18. Bxf4 {[%emt 0:00:06]} Nd6 {[%emt 0:00:01]} 19. Ne5 {[%emt 0:00:12]} Qc8 {[%emt 0:00:11]} 20. Qf2 {[%emt 0:00:14]} f6 {[%emt 0:00:09]} 21. Nf3 {[%emt 0:00:08]} Bd5 {[%emt 0:00:01]} 22. Be3 {[%emt 0:00:06]} b6 {[%emt 0:00:07]} 23. Rae1 {[%emt 0:00:23]} e5 {[%emt 0:00:02]} 24. Bc1 {[%emt 0:00:04]} Qc6 {[%emt 0:00:10]} 25. Nh4 {[%emt 0:00:04]} c4 {[%emt 0:00:10]} 26. d4 {[%emt 0:00:16]} e4 {[%emt 0:00:07]} 27. Qg3 {[%emt 0:00:05]} f5 {[%emt 0:00:09]} 28. Bf4 {[%emt 0:00:07]} Nf7 {[%emt 0:00:06]} 29. Qe3 {[%emt 0:00:04]} Bf6 {[%emt 0:00:12]} 30. g3 {[%emt 0:00:07]} Rd7 {[%emt 0:00:09]} 31. Ng2 {[%emt 0:00:01]} g5 {[%emt 0:00:03]} 32. Be5 {[%emt 0:00:01]} Nxe5 {[%emt 0:00:09]} 33. dxe5 {[%emt 0:00:00]} Bxe5 {[%emt 0:00:01]} 34. Qxg5+ {[%emt 0:00:01]} Rg7 {[%emt 0:00:02]} 35. Qh5 {[%emt 0:00:02]} Bxg3 {[%emt 0:00:04]} 36. Rd1 {[%emt 0:00:02]} Be6 {[%emt 0:00:08]} 37. Kh1 {[%emt 0:00:03]} f4 {[%emt 0:00:03]} 38. Qe5 {[%emt 0:00:02]} f3 {[%emt 0:00:07]} 39. Bxe4 {[%emt 0:00:01]} fxg2+ {[%emt 0:00:04]} 40. Bxg2 {[%emt 0:00:04]} Qxg2+ {[%emt 0:00:02]} 0-1

[Event "American Cup Blitz 2024"]
[Site "Saint Louis"]
[Date "2024.03.21"]
[Round "4.7"]
[White "Akobian, Varuzhan"]
[Black "Robson, Ray"]
[Result "1/2-1/2"]
[ECO "E61"]
[WhiteElo "2571"]
[BlackElo "2696"]
[Annotator "TA"]
[PlyCount "151"]
[EventDate "2024.03.21"]
[EventType "swiss"]
[EventCountry "USA"]
[SourceTitle "playchess.com"]
[Source "ChessBase"]
[SourceQuality "1"]
[TimeControl "180+2"]

{[%evp 98,151,0,0,0,0,0,0,0,0,0,0,0,0,0,0,0,0,0,0,0,0,0,0,0,0,0,0,0,0,0,0,0,0,0,0,0,0,0,0,0,0,0,0,0,0,0,0,0,0,0,0,0,0,0,0]} 1. d4 {[%emt 0:00:00]} Nf6 {[%emt 0:00:01]} 2. c4 {[%emt 0:00:02]} g6 {[%emt 0:00:01]} 3. Nc3 {[%emt 0:00:01]} Bg7 {[%emt 0:00:01]} 4. Nf3 {[%emt 0:00:01]} d6 {[%emt 0:00:01]} 5. Bg5 {[%emt 0:00:02]} h6 {[%emt 0:00:06]} 6. Bf4 {[%emt 0:00:01]} Nc6 {[%emt 0:00:06] E61: Königsindisch (Abweichungen der Hauptvariante).} 7. h3 {[%emt 0:00:02]} g5 $146 {[%emt 0:00:06]} ({Predecessor:} 7... O-O 8. e3 Nd7 9. Bh2 e5 10. d5 Ne7 11. Be2 a5 12. a3 Nf5 13. Qc2 Nh4 {0-1 Opravil,K (2083)-Horak,J (2138) CZE-chT2D 2223 2022 (8.3)}) 8. Bd2 {[%emt 0:00:18]} e5 {[%emt 0:00:19]} 9. d5 {[%emt 0:00:01]} Ne7 {[%emt 0:00:13]} 10. e4 {[%emt 0:00:03]} c6 {[%emt 0:00:19]} 11. Bd3 {[%emt 0:00:20]} Ng6 {[%emt 0:00:09]} 12. g3 {[%emt 0:00:01]} g4 {[%emt 0:00:04]} 13. hxg4 {[%emt 0:00:07]} Bxg4 {[%emt 0:00:03]} 14. Be2 {[%emt 0:00:10]} Qd7 {[%emt 0:00:19]} 15. Nh4 {[%emt 0:00:17]} Bxe2 {[%emt 0:00:12]} 16. Qxe2 {[%emt 0:00:03]} Nxh4 {[%emt 0:00:02]} 17. Rxh4 {[%emt 0:00:02]} O-O-O {[%emt 0:00:03]} 18. dxc6 {[%emt 0:00:18]} bxc6 {[%emt 0:00:08]} 19. O-O-O {[%emt 0:00:05]} Kb7 {[%emt 0:00:14]} 20. Be3 {[%emt 0:00:06]} Qe6 {[%emt 0:00:09]} 21. Kb1 {[%emt 0:00:06]} Rd7 {[%emt 0:00:09]} 22. f3 {[%emt 0:00:15]} Ka8 {[%emt 0:00:08]} 23. Rdh1 {[%emt 0:00:20]} d5 {[%emt 0:00:12]} 24. cxd5 {[%emt 0:00:12]} cxd5 {[%emt 0:00:01]} 25. exd5 {[%emt 0:00:02]} Nxd5 {[%emt 0:00:01]} 26. Nxd5 {[%emt 0:00:03]} Qxd5 {[%emt 0:00:12]} 27. Bxh6 {[%emt 0:00:13]} Bf6 {[%emt 0:00:12]} 28. Bg5 {[%emt 0:00:08]} Rxh4 {[%emt 0:00:06]} 29. gxh4 {[%emt 0:00:03]} Bxg5 {[%emt 0:00:06]} 30. hxg5 {[%emt 0:00:01]} Qd3+ {[%emt 0:00:02]} 31. Qxd3 {[%emt 0:00:02]} Rxd3 {[%emt 0:00:01]} 32. Rh8+ {[%emt 0:00:19]} Kb7 {[%emt 0:00:00]} 33. Rf8 {[%emt 0:00:06]} Rxf3 {[%emt 0:00:07]} 34. g6 {[%emt 0:00:02]} Rg3 {[%emt 0:00:08]} 35. gxf7 {[%emt 0:00:14]} Rf3 {[%emt 0:00:01]} 36. Kc2 {[%emt 0:00:01]} e4 {[%emt 0:00:02]} 37. b4 {[%emt 0:00:02]} a6 {[%emt 0:00:07]} 38. a4 {[%emt 0:00:01]} Rf2+ {[%emt 0:00:03]} 39. Kc3 {[%emt 0:00:01]} Ka7 {[%emt 0:00:03]} 40. Kd4 {[%emt 0:00:01]} Kb7 {[%emt 0:00:02]} 41. Kxe4 {[%emt 0:00:04]} Rf1 {[%emt 0:00:01]} 42. Kd4 {[%emt 0:00:05]} Rd1+ {[%emt 0:00:02]} 43. Kc5 {[%emt 0:00:01]} Rc1+ {[%emt 0:00:02]} 44. Kd4 {[%emt 0:00:04]} Rd1+ {[%emt 0:00:00]} 45. Kc3 {[%emt 0:00:01]} Rc1+ {[%emt 0:00:01]} 46. Kb2 {[%emt 0:00:01]} Rf1 {[%emt 0:00:01]} 47. b5 {[%emt 0:00:01]} axb5 {[%emt 0:00:03]} 48. axb5 {[%emt 0:00:01]} Ka7 {[%emt 0:00:04]} 49. Kc3 {[%emt 0:00:02]} Kb7 {[%emt 0:00:01]} 50. Kb4 {[%emt 0:00:01]} Rb1+ {[%emt 0:00:02]} 51. Kc5 {[%emt 0:00:01]} Rc1+ {[%emt 0:00:01]} 52. Kd5 {[%emt 0:00:05]} Rd1+ {[%emt 0:00:01]} 53. Kc4 {[%emt 0:00:02]} Rc1+ {[%emt 0:00:01]} 54. Kd3 {[%emt 0:00:01]} Rf1 $1 {[%emt 0:00:01]} 55. Ke2 {[%emt 0:00:01]} Rf6 {[%emt 0:00:02]} 56. Ke3 {[%emt 0:00:04]} Rf1 {[%emt 0:00:01]} 57. Kd4 {[%emt 0:00:05]} Rd1+ {[%emt 0:00:02]} 58. Ke5 {[%emt 0:00:00]} Re1+ {[%emt 0:00:01]} 59. Kd6 {[%emt 0:00:01]} Rd1+ {[%emt 0:00:01]} 60. Ke7 {[%emt 0:00:01]} Re1+ {[%emt 0:00:01]} 61. Kf6 {[%emt 0:00:03]} Rf1+ {[%emt 0:00:01]} 62. Ke5 {[%emt 0:00:01]} Re1+ {[%emt 0:00:01]} 63. Kd4 $1 {[%emt 0:00:00]} Rd1+ {[%emt 0:00:01]} 64. Kc3 {[%emt 0:00:01]} Rc1+ {[%emt 0:00:01]} 65. Kb2 {[%emt 0:00:01]} Rf1 $1 {[%emt 0:00:01]} 66. Ka3 {[%emt 0:00:02]} Ra1+ {[%emt 0:00:03]} 67. Kb2 {[%emt 0:00:02]} Rf1 $1 {[%emt 0:00:01]} 68. b6 {[%emt 0:00:02]} Rf3 {[%emt 0:00:02]} 69. Kc2 {[%emt 0:00:02]} Rf6 {[%emt 0:00:03]} 70. Kd3 {[%emt 0:00:02]} Rf1 {[%emt 0:00:02]} 71. Ke2 {[%emt 0:00:01]} Rf6 {[%emt 0:00:01]} 72. Ke3 {[%emt 0:00:04]} Rf1 {[%emt 0:00:01]} 73. Ke2 {[%emt 0:00:06]} Rf6 {[%emt 0:00:02]} 74. Ke3 {[%emt 0:00:01]} Rf1 {[%emt 0:00:01]} 75. Ke2 {[%emt 0:00:01]} Rf6 {[%emt 0:00:01]} 76. Ke3 1/2-1/2

[Event "American Cup Blitz 2024"]
[Site "Saint Louis"]
[Date "2024.03.21"]
[Round "4.8"]
[White "Shankland, Sam"]
[Black "Harsha Bharathakoti"]
[Result "0-1"]
[ECO "D50"]
[WhiteElo "2674"]
[BlackElo "2567"]
[Annotator "TA"]
[PlyCount "118"]
[EventDate "2024.03.21"]
[EventType "swiss"]
[EventCountry "USA"]
[SourceTitle "playchess.com"]
[Source "ChessBase"]
[SourceQuality "1"]
[TimeControl "180+2"]

{[%evp 43,118,-16,-18,-20,-12,-16,-13,-8,0,-24,0,-25,-7,-25,-38,-31,-28,-46,-25,-26,0,-31,0,-193,-32,-8,-14,-36,0,-79,0,0,14,36,41,50,71,77,92,8,275,263,208,62,141,0,0,0,0,0,0,0,0,0,0,-8,0,-8,-8,-29975,-29976,-29976,-29977,-29977,-29978,-29978,-29979,-29979,-29980,-29980,-29980,-29986,-29987,-29987,-29988,-29988,-29989]} 1. d4 {[%emt 0:00:02]} e6 {[%emt 0:00:04]} 2. c4 {[%emt 0:00:01]} d5 {[%emt 0:00:08]} 3. Nc3 {[%emt 0:00:03]} Nf6 {[%emt 0:00:02]} 4. Bg5 {[%emt 0:00:02]} dxc4 {[%emt 0:00:11]} 5. e3 {[%emt 0:00:03]} a6 {[%emt 0:00:17]} 6. Bxc4 {[%emt 0:00:06] D50: Damengambit (Canal/Prins-Gambit).} b5 {[%emt 0:00:04] 6...c5 ist der hippe Zug.} 7. Be2 {[%emt 0:00:02]} c5 {[%emt 0:00:15]} 8. Nf3 {[%emt 0:00:58]} Bb7 {[%emt 0:00:10]} 9. O-O {[%emt 0:00:01]} Nbd7 {[%emt 0:00:08]} 10. Ne5 $146 {[%emt 0:00:11]} ({Predecessor:} 10. dxc5 Bxc5 11. a3 O-O 12. b4 Be7 13. Qb3 h6 14. Bh4 Rc8 15. Rac1 Qb6 16. Rfd1 {1-0 Manukyan,S (2237)-Jaque Gutierrez,M (2187) Titled Tuesday intern op 01st Aug Late blitz 2023 (4)}) 10... Nxe5 {[%emt 0:00:21]} 11. dxe5 {[%emt 0:00:00]} Qxd1 {[%emt 0:00:01]} 12. Rfxd1 {[%emt 0:00:03]} Nd7 {[%emt 0:00:22]} 13. f4 {[%emt 0:01:22]} Be7 {[%emt 0:00:16]} 14. Bxe7 {[%emt 0:00:01]} Kxe7 {[%emt 0:00:01]} 15. Kf2 {[%emt 0:00:04]} Rhd8 {[%emt 0:00:17]} 16. Bf3 {[%emt 0:00:03]} Bxf3 17. Kxf3 {[%emt 0:00:01]} f6 {[%emt 0:00:32]} 18. exf6+ {[%emt 0:00:09]} gxf6 {[%emt 0:00:04]} 19. Ne4 {[%emt 0:00:03]} f5 {[%emt 0:00:05]} 20. Ng5 {[%emt 0:00:06]} Nf6 {[%emt 0:00:11]} 21. Ke2 {[%emt 0:00:01]} h6 {[%emt 0:00:08]} 22. Nf3 {[%emt 0:00:01]} Rxd1 23. Rxd1 {[%emt 0:00:01]} Rd8 {[%emt 0:00:03]} 24. Rc1 {[%emt 0:00:11]} Ne4 {[%emt 0:00:02]} 25. Rc2 {[%emt 0:00:01]} c4 {[%emt 0:00:05]} 26. Nd4 {[%emt 0:00:04]} Kf6 {[%emt 0:00:03]} 27. Kf3 {[%emt 0:00:03]} h5 {[%emt 0:00:02]} 28. g3 {[%emt 0:00:02]} Rc8 {[%emt 0:00:02]} 29. a3 {[%emt 0:00:04]} Rc7 {[%emt 0:00:02]} 30. Ne2 {[%emt 0:00:03]} Rd7 {[%emt 0:00:01]} 31. Nd4 {[%emt 0:00:01]} Rc7 {[%emt 0:00:02]} 32. Rc1 {[%emt 0:00:05]} Rc8 {[%emt 0:00:03]} 33. b3 $2 {[%emt 0:00:03]} (33. Rc2 $11) 33... Rc7 $2 {[%emt 0:00:03]} (33... Nd2+ $19 34. Ke2 Nxb3 35. Nxb3 cxb3) 34. bxc4 $15 {[%emt 0:00:03]} Rxc4 {[%emt 0:00:01]} (34... bxc4 35. Ke2 $11) 35. Rxc4 {[%emt 0:00:01]} bxc4 {[%emt 0:00:01]} 36. Ke2 {[%emt 0:00:02]} (36. Nc6 $11) 36... e5 {[%emt 0:00:02]} (36... Ke7 $17) 37. Nc6 $11 {[%emt 0:00:01]} exf4 {[%emt 0:00:02]} 38. exf4 {[%emt 0:00:01]} Ke6 {[%emt 0:00:04]} 39. Nd4+ {[%emt 0:00:02]} Kf6 {[%emt 0:00:01]} 40. Ke3 {[%emt 0:00:01]} Nc5 {[%emt 0:00:03]} 41. Ne2 {[%emt 0:00:03]} (41. Nc6 $16) 41... Ne4 $2 {[%emt 0:00:01][%mdl 8192]} (41... Nb3 $11 {und Schwarz ist OK.}) 42. Kd4 $18 {[%emt 0:00:01]} Nd2 {[%emt 0:00:03]} 43. Ng1 {[%emt 0:00:06]} (43. a4 $18) 43... Ke6 {[%emt 0:00:02]} (43... h4 $14) 44. Kc3 {[%emt 0:00:02]} ({Vorzuziehen ist} 44. a4 $1 $16) 44... Nb1+ $11 {[%emt 0:00:01]} 45. Kxc4 {[%emt 0:00:02]} (45. Kb2 $5 Nd2 $8 46. Kc3 Nb1+ 47. Kxc4 Nxa3+ 48. Kd4 $11) 45... Nxa3+ {[%emt 0:00:01]} 46. Kc5 {[%emt 0:00:00]} (46. Kb3 $5 Nb5 $8 47. Kc4 $11) 46... Nc2 {[%emt 0:00:04]} 47. Nf3 {[%emt 0:00:02]} Ne3 {[%emt 0:00:02]} 48. Kd4 {[%emt 0:00:02]} Ng4 {[%emt 0:00:01]} 49. h3 {[%emt 0:00:01]} Nf6 {[%emt 0:00:03]} 50. Kc4 {[%emt 0:00:01]} Ne4 {[%emt 0:00:01]} 51. Ng5+ $2 {[%emt 0:00:03][%mdl 8192]} (51. Nd4+ $11 Kf6 52. Ne2) 51... Nxg5 {[%emt 0:00:02]} 52. fxg5 {[%emt 0:00:01] [#]} h4 $1 {[%emt 0:00:02]} 53. gxh4 {[%emt 0:00:02]} f4 {[%emt 0:00:02]} 54. h5 {[%emt 0:00:01]} Kf5 {[%emt 0:00:03]} 55. h6 {[%emt 0:00:02] [#]} Kg6 $1 {[%emt 0:00:00]} (55... Kxg5 56. h7 Kh4 57. h8=Q+ (57. h8=R+ Kg5 58. Kd3 a5 59. Ke4 Kf6 60. Kxf4 Kf7 61. Ra8 Kf6) 57... Kg3 58. Qh5 Kg2 59. Qg4+ Kf2 60. Qxf4+ Kg2 61. Kd4) 56. Kd4 {[%emt 0:00:04]} a5 57. Ke5 {[%emt 0:00:04]} f3 {[%emt 0:00:01]} ({Minderwertig wäre} 57... Kxg5 58. h7 f3 59. h8=Q (59. h8=R f2 60. Rf8 Kh4 61. Rxf2 Kg3 62. Ra2 Kf3 63. h4 Ke3 64. Ra3+ Ke2) 59... f2 60. Qf6+ Kh5 61. Qxf2 Kg6 62. Qf6+ Kh7 63. Qf7+ Kh6 64. Kf6 a4 65. Qg6#) 58. h7 {[%emt 0:00:00]} Kxh7 {[%emt 0:00:03]} ({Und nicht} 58... Kxg5 59. h8=Q (59. h8=R f2 60. Rf8 Kh4 61. Rxf2 Kg3 62. Ra2 Kf3 63. Ra3+ Kg2) 59... f2 60. Qf6+ Kh5 61. Qxf2 Kg6 62. Qf6+ Kh7 63. Qf7+ Kh6 64. Kf6 a4 65. Qg6#) 59. Kf6 Kg8 {[%emt 0:00:01]} 0-1